bitfinex/quotes_SOLUSD_20250616
["timestamp","ask_amount","ask_price","bid_price","bid_amount"]
[1750048782940,4.67714467,157.29,157.24,4.67714467]
[1750048783745,26.28432314,157.32,157.24,4.67714467]
[1750048783948,4.67714467,157.3,157.24,4.67714467]
[1750048784467,4.67714467,157.29,157.24,4.67714467]
[1750048785568,4.67714467,157.28,157.23,26.12]
[1750048785747,4.67714467,157.28,157.23,4.67714467]
[1750048785947,4.67714467,157.29,157.24,4.67714467]
[1750048786472,26.0,157.31,157.24,4.67714467]
[1750048786671,4.67714467,157.29,157.24,4.67714467]
[1750048787378,26.0,157.31,157.24,4.67714467]
[1750048787550,26.0,157.31,157.23,4.67714467]
[1750048787551,4.67714467,157.29,157.23,4.67714467]
[1750048789079,4.67714467,157.29,157.24,4.67714467]
[1750048792182,26.0,157.31,157.24,4.67714467]
[1750048792483,4.67714467,157.3,157.25,4.67714467]
[1750048793069,26.0,157.31,157.25,4.67714467]
[1750048793376,4.67714467,157.29,157.24,4.67714467]
[1750048793975,4.67714467,157.27,157.21,44.76964886]
[1750048794277,4.67714467,157.27,157.22,4.67714467]
[1750048794853,26.0,157.3,157.23,4.67714467]
[1750048795086,4.67714467,157.28,157.23,4.67714467]
[1750048795256,30.67714467,157.28,157.23,4.67714467]
[1750048796473,4.67714467,157.28,157.23,4.67714467]
[1750048797768,26.0,157.3,157.24,4.67714467]
[1750048797963,26.0,157.3,157.25,4.67714467]
[1750048797964,30.67714467,157.3,157.25,4.67714467]
[1750048799195,10.60146781,157.32,157.27,4.67714467]
[1750048799357,26.0,157.31,157.27,4.67714467]
[1750048801065,30.67714467,157.31,157.26,4.67714467]
[1750048801963,7.1717,157.33,157.27,4.67714467]
[1750048801964,4.67714467,157.32,157.27,4.67714467]
[1750048803367,33.1717,157.33,157.27,4.67714467]
[1750048803569,4.67714467,157.32,157.27,4.67714467]
[1750048804569,33.1717,157.33,157.27,4.67714467]
[1750048804886,4.67714467,157.31,157.26,4.67714467]
[1750048805090,4.67714467,157.29,157.23,4.67714467]
[1750048805272,4.67714467,157.27,157.22,4.67714467]
[1750048805793,4.67714467,157.29,157.24,4.67714467]
[1750048806159,26.0,157.28,157.24,4.67714467]
[1750048806792,30.67714467,157.29,157.24,4.67714467]
[1750048806990,4.67714467,157.25,157.18,26.0]
[1750048807292,4.67714467,157.23,157.18,4.67714467]
[1750048807467,0.28432314,157.26,157.16,6.36268854]
[1750048807666,4.67714467,157.21,157.16,4.67714467]
[1750048807866,4.67714467,157.21,157.14,54.41094486]
[1750048808067,4.67714467,157.21,157.16,4.67714467]
[1750048808287,4.67714467,157.21,157.15,18.79181043]
[1750048808600,4.67714467,157.21,157.16,4.67714467]
[1750048811791,30.67714467,157.22,157.17,4.67714467]
[1750048812770,4.67714467,157.21,157.16,4.67714467]
[1750048813785,4.67714467,157.22,157.17,4.67714467]
[1750048814684,4.67714467,157.21,157.16,4.67714467]
[1750048817184,4.67714467,157.2,157.15,4.67714467]
[1750048817383,4.67714467,157.18,157.14,48.04727034]
[1750048817575,30.67714467,157.18,157.13,4.67714467]
[1750048817777,4.67714467,157.17,157.11,18.64964886]
[1750048818095,4.67714467,157.17,157.12,4.67714467]
[1750048818595,26.0,157.18,157.14,4.67714467]
[1750048819470,30.67714467,157.18,157.13,4.67714467]
[1750048819779,4.67714467,157.17,157.12,4.67714467]
[1750048820804,4.67714467,157.16,157.11,4.67714467]
[1750048824879,4.67714467,157.15,157.11,4.67714467]
[1750048825193,4.67714467,157.15,157.08,26.0]
[1750048825387,4.67714467,157.13,157.08,30.67714467]
[1750048825706,4.67714467,157.14,157.1,4.67714467]
[1750048826012,30.67714467,157.16,157.11,4.67714467]
[1750048827084,30.67714467,157.16,157.09,18.79181043]
[1750048827409,30.67714467,157.16,157.11,4.67714467]
[1750048828203,26.0,157.16,157.11,4.67714467]
[1750048828388,30.67714467,157.16,157.11,4.67714467]
[1750048828583,7.6402,157.21,157.15,4.67714467]
[1750048828803,11.86744467,157.21,157.16,4.67714467]
[1750048828992,37.86744467,157.21,157.16,4.67714467]
[1750048829196,7.1903,157.21,157.17,4.67714467]
[1750048830416,5.64,157.21,157.17,4.67714467]
[1750048830711,10.31714467,157.24,157.19,4.67714467]
[1750048831082,7.8499,157.25,157.19,4.67714467]
[1750048831312,4.73057664,157.28,157.22,4.67714467]
[1750048831313,4.67714467,157.27,157.22,4.67714467]
[1750048831611,10.31714467,157.28,157.22,4.67714467]
[1750048831797,10.31714467,157.28,157.21,6.36085794]
[1750048832117,10.31714467,157.28,157.22,4.67714467]
[1750048832482,36.31714467,157.28,157.22,4.67714467]
[1750048835009,4.67714467,157.26,157.19,18.79181043]
[1750048835210,26.0,157.25,157.18,30.81714467]
[1750048835407,4.67714467,157.23,157.18,30.81714467]
[1750048835800,4.67714467,157.23,157.17,4.67714467]
[1750048838323,4.67714467,157.22,157.17,4.67714467]
[1750048840101,4.67714467,157.23,157.17,4.67714467]
[1750048841501,4.67714467,157.21,157.15,44.76964886]
[1750048841706,4.67714467,157.19,157.13,89.2]
[1750048841919,4.67714467,157.18,157.13,93.87714467]
[1750048842426,4.67714467,157.17,157.13,89.2]
[1750048842627,4.67714467,157.17,157.12,30.81714467]
[1750048842828,4.67714467,157.17,157.1,38.81064819]
[1750048842829,4.67714467,157.15,157.1,30.79714467]
[1750048843127,4.67714467,157.15,157.1,4.67714467]
[1750048846345,4.67714467,157.15,157.09,6.29634467]
[1750048846560,4.67714467,157.13,157.08,4.67714467]
[1750048847549,1.5631,157.15,157.08,4.67714467]
[1750048847727,4.67714467,157.14,157.08,4.67714467]
[1750048848650,4.67714467,157.13,157.08,4.67714467]
[1750048849041,4.67714467,157.14,157.09,4.67714467]
[1750048850056,1.5631,157.15,157.09,4.67714467]
[1750048850240,30.67714467,157.16,157.11,4.67714467]
[1750048850439,4.67714467,157.15,157.1,4.67714467]
[1750048851442,30.67714467,157.16,157.1,4.67714467]
[1750048851638,26.0,157.15,157.1,4.67714467]
[1750048853344,30.67714467,157.16,157.11,4.67714467]
[1750048853853,30.67714467,157.16,157.1,4.67714467]
[1750048854156,4.67714467,157.15,157.1,4.67714467]
[1750048854863,4.67714467,157.15,157.09,6.36563317]
[1750048855059,4.67714467,157.14,157.09,4.67714467]
[1750048856744,30.67714467,157.16,157.11,4.67714467]
[1750048857265,4.67714467,157.15,157.1,4.67714467]
[1750048857434,7.2315,157.19,157.09,0.14216157]
[1750048857639,26.0,157.18,157.09,0.14216157]
[1750048857851,4.67714467,157.17,157.12,4.67714467]
[1750048859062,26.0,157.16,157.12,4.67714467]
[1750048859250,4.67714467,157.17,157.12,4.67714467]
[1750048860173,30.67714467,157.18,157.12,4.67714467]
[1750048861048,30.67714467,157.18,157.13,4.67714467]
[1750048862156,30.67714467,157.18,157.12,4.67714467]
[1750048863863,4.67714467,157.17,157.1,0.14216157]
[1750048864068,4.67714467,157.17,157.11,4.67714467]
[1750048864247,4.67714467,157.17,157.12,4.67714467]
[1750048864964,7.2315,157.19,157.14,4.67714467]
[1750048865164,5.64,157.19,157.16,4.67714467]
[1750048865642,4.67714467,157.17,157.11,18.64964886]
[1750048865844,5.64,157.19,157.11,18.64964886]
[1750048865845,4.67714467,157.16,157.11,18.64964886]
[1750048866571,4.67714467,157.16,157.1,23.32679353]
[1750048866870,4.67714467,157.17,157.11,4.67714467]
[1750048867059,4.67714467,157.17,157.12,4.67714467]
[1750048867372,4.67714467,157.16,157.11,4.67714467]
[1750048868662,4.67714467,157.14,157.09,94.01930624]
[1750048868866,4.67714467,157.14,157.09,4.81930624]
[1750048869067,4.67714467,157.14,157.09,4.67714467]
[1750048869271,4.67714467,157.15,157.09,4.67714467]
[1750048869576,4.67714467,157.14,157.09,4.67714467]
[1750048870275,4.67714467,157.15,157.1,4.67714467]
[1750048870455,4.67714467,157.14,157.09,4.67714467]
[1750048871170,4.67714467,157.15,157.1,4.67714467]
[1750048871568,4.67714467,157.14,157.09,4.67714467]
[1750048873159,4.67714467,157.13,157.08,23.4689551]
[1750048873364,4.67714467,157.13,157.08,4.67714467]
[1750048873578,4.67714467,157.11,157.05,18.79181043]
[1750048873755,4.67714467,157.11,157.06,4.67714467]
[1750048874946,26.0,157.13,157.07,4.67714467]
[1750048875153,30.67714467,157.13,157.08,4.67714467]
[1750048875376,4.67714467,157.12,157.07,4.67714467]
[1750048875674,30.67714467,157.1,157.05,4.67714467]
[1750048875863,30.67714467,157.1,157.05,18.79181043]
[1750048876454,30.67714467,157.1,157.04,4.67714467]
[1750048876782,4.67714467,157.09,157.03,4.67714467]
[1750048876948,4.67714467,157.09,157.04,4.67714467]
[1750048877845,30.67714467,157.1,157.04,4.67714467]
[1750048878683,4.67714467,157.09,157.04,4.67714467]
[1750048879592,4.67714467,157.08,157.02,6.3779]
[1750048879753,4.67714467,157.08,157.02,4.67714467]
[1750048881155,4.67714467,157.06,157.0,26.0]
[1750048881354,26.0,157.08,157.0,30.67714467]
[1750048881355,4.67714467,157.05,157.0,30.67714467]
[1750048881660,4.67714467,157.05,157.0,4.67714467]
[1750048881976,4.67714467,157.04,156.99,4.67714467]
[1750048882164,4.67714467,157.03,156.98,30.67714467]
[1750048882355,4.67714467,157.03,156.98,4.67714467]
[1750048882864,4.67714467,157.03,156.97,18.64964886]
[1750048883047,4.67714467,157.03,156.97,23.32679353]
[1750048883252,4.67714467,157.02,156.97,23.32679353]
[1750048884061,4.67714467,157.02,156.96,23.32679353]
[1750048884276,4.67714467,157.01,156.96,4.67714467]
[1750048884460,30.67714467,157.02,156.96,4.67714467]
[1750048884660,30.67714467,157.02,156.97,4.67714467]
[1750048885659,4.67714467,157.01,156.96,4.67714467]
[1750048887578,4.67714467,157.0,156.95,23.32679353]
[1750048889059,4.67714467,157.0,156.95,29.69811145]
[1750048889495,5.64,157.02,156.99,4.67714467]
[1750048889790,5.64,157.02,157.0,4.67714467]
[1750048889969,5.64,157.02,156.96,0.14216157]
[1750048889970,5.64,157.02,157.01,4.67714467]
[1750048897070,5.64,157.02,156.98,44.78964886]
[1750048897278,5.64,157.02,157.01,4.67714467]
[1750048897765,13.66927109,157.06,157.01,23.4689551]
[1750048897971,13.66927109,157.06,157.04,4.67714467]
[1750048898375,13.66927109,157.06,157.05,4.67714467]
[1750048899995,13.66927109,157.06,157.04,4.67714467]
[1750048900291,13.66927109,157.06,157.03,4.67714467]
[1750048900495,4.67714467,157.04,157.0,89.2]
[1750048900795,4.67714467,157.04,156.99,4.67714467]
[1750048901781,13.66927109,157.06,156.99,4.67714467]
[1750048901979,4.67714467,157.04,156.99,4.67714467]
[1750048903999,4.67714467,157.04,156.99,11.04697638]
[1750048904175,4.67714467,157.05,157.0,4.67714467]
[1750048905100,4.67714467,157.04,156.99,4.67714467]
[1750048906900,4.67714467,157.04,156.99,11.04695609]
[1750048907388,4.67714467,157.04,156.99,4.67714467]
[1750048908208,4.67714467,157.04,156.99,11.0469243]
[1750048908377,4.67714467,157.05,156.99,11.0469243]
[1750048908696,4.67714467,157.05,157.0,4.67714467]
[1750048909482,4.67714467,157.05,156.99,37.1869243]
[1750048909710,4.67714467,157.05,157.0,4.67714467]
[1750048910707,4.67714467,157.03,156.99,26.14]
[1750048911590,20.27607109,157.06,156.99,26.14]
[1750048911801,4.67714467,157.03,156.99,26.14]
[1750048912401,4.67714467,157.03,156.98,30.81714467]
[1750048914302,20.27607109,157.06,156.98,26.14]
[1750048914610,4.67714467,157.03,156.98,30.81714467]
[1750048916608,4.67714467,157.04,156.99,4.67714467]
[1750048916791,5.64,157.05,157.01,4.67714467]
[1750048917114,10.31714467,157.05,157.0,4.67714467]
[1750048920319,4.67714467,157.04,156.99,4.67714467]
[1750048920738,4.67714467,157.03,156.98,0.14216157]
[1750048921032,4.67714467,157.04,156.99,4.67714467]
[1750048923829,5.64,157.05,157.0,4.67714467]
[1750048923830,10.31714467,157.05,157.0,4.67714467]
[1750048924346,10.31714467,157.05,156.98,30.81714467]
[1750048924347,4.67714467,157.03,156.98,30.81714467]
[1750048928338,4.67714467,157.03,156.98,4.67714467]
[1750048928541,10.39761062,157.05,156.98,30.81714467]
[1750048928745,4.67714467,157.04,156.99,4.67714467]
[1750048929219,4.67714467,157.03,156.98,30.81714467]
[1750048930730,4.67714467,157.03,156.98,37.18738086]
[1750048930936,4.67714467,157.03,156.99,4.67714467]
[1750048931540,10.39761062,157.05,156.99,4.67714467]
[1750048931728,4.67714467,157.04,156.99,4.67714467]
[1750048931923,4.67714467,157.03,156.98,30.81714467]
[1750048933518,4.67714467,157.0,156.96,4.67714467]
[1750048933718,4.67714467,157.0,156.97,26.14]
[1750048933937,4.67714467,157.0,156.96,4.67714467]
[1750048934641,4.67714467,156.98,156.93,90.7503]
[1750048934938,4.67714467,156.98,156.94,26.14]
[1750048935115,4.77410227,157.0,156.94,26.14]
[1750048935436,4.67714467,156.98,156.94,26.14]
[1750048936232,26.0,157.0,156.94,4.67714467]
[1750048936429,4.67714467,156.99,156.94,4.67714467]
[1750048937147,4.67714467,156.99,156.92,32.51258687]
[1750048937441,4.67714467,156.99,156.94,4.67714467]
[1750048937643,4.67714467,156.98,156.92,26.14]
[1750048937834,4.67714467,156.98,156.93,4.67714467]
[1750048939350,26.0,157.0,156.92,30.81714467]
[1750048939351,4.67714467,156.97,156.92,30.81714467]
[1750048939852,4.67714467,156.97,156.92,26.14]
[1750048940231,4.67714467,156.97,156.92,30.81714467]
[1750048941130,4.67714467,156.98,156.92,30.81714467]
[1750048941532,4.67714467,156.98,156.93,4.67714467]
[1750048943147,4.67714467,156.98,156.92,26.14]
[1750048943448,4.67714467,156.97,156.92,30.81714467]
[1750048944146,4.67714467,156.97,156.92,26.14]
[1750048944341,4.67714467,156.96,156.92,26.14]
[1750048944940,4.67714467,156.96,156.91,30.81714467]
[1750048945478,4.67714467,156.96,156.91,4.67714467]
[1750048945654,4.67714467,156.96,156.91,30.81714467]
[1750048945852,5.64,156.98,156.93,4.67714467]
[1750048946035,10.31714467,156.98,156.93,4.67714467]
[1750048947351,4.67714467,156.97,156.92,4.67714467]
[1750048947845,4.67714467,156.95,156.9,30.81714467]
[1750048948030,1.5031,156.96,156.9,26.14]
[1750048948031,4.67714467,156.94,156.9,26.14]
[1750048948227,4.67714467,156.95,156.9,30.81714467]
[1750048948938,4.67714467,156.95,156.9,26.14]
[1750048949146,4.67714467,156.95,156.9,30.81714467]
[1750048950034,4.67714467,156.95,156.9,26.14]
[1750048950252,4.67714467,156.95,156.9,30.81714467]
[1750048951830,6.18024467,156.96,156.91,4.67714467]
[1750048952355,5.64,156.98,156.95,4.67714467]
[1750048952538,5.64,156.98,156.94,4.67714467]
[1750048952739,4.67714467,156.97,156.93,26.14]
[1750048952948,4.67714467,156.95,156.9,4.67714467]
[1750048953261,4.67714467,156.95,156.91,26.14]
[1750048955539,4.67714467,156.95,156.9,4.67714467]
[1750048955740,4.67714467,156.95,156.9,30.81714467]
[1750048956052,4.67714467,156.94,156.88,52.91724886]
[1750048956241,4.67714467,156.94,156.89,30.81714467]
[1750048956436,4.67714467,156.94,156.89,4.67714467]
[1750048956756,4.67714467,156.94,156.89,26.14]
[1750048956965,27.6015,156.95,156.89,4.67714467]
[1750048957255,32.27864467,156.95,156.9,4.67714467]
[1750048957854,26.0,156.95,156.91,4.67714467]
[1750048958258,26.0,156.95,156.9,26.14]
[1750048958458,26.0,156.95,156.9,30.81714467]
[1750048958758,30.67714467,156.95,156.9,30.81714467]
[1750048958942,26.0,156.95,156.91,4.67714467]
[1750048959831,26.0,156.95,156.9,32.51343002]
[1750048959832,26.0,156.95,156.9,26.14]
[1750048960037,26.0,156.95,156.9,30.81714467]
[1750048960658,1.6015,156.99,156.94,4.67714467]
[1750048961166,36.31714467,157.0,156.95,4.67714467]
[1750048961338,11.42220771,157.02,156.97,4.67714467]
[1750048961538,11.42220771,157.02,156.99,4.67714467]
[1750048962048,11.42220771,157.02,156.98,30.81714467]
[1750048962553,16.09935238,157.02,156.98,26.14]
[1750048962958,4.67714467,157.0,156.98,26.14]
[1750048963738,4.67714467,157.0,156.95,4.67714467]
[1750048963739,30.67714467,156.99,156.9,14.54287307]
[1750048963944,4.67714467,156.98,156.93,4.67714467]
[1750048964144,30.67714467,156.99,156.93,4.67714467]
[1750048966270,4.67714467,156.98,156.93,4.67714467]
[1750048966851,4.67714467,156.98,156.92,26.14]
[1750048967053,4.67714467,156.97,156.92,30.81714467]
[1750048968352,27.6612,157.0,156.93,4.67714467]
[1750048968560,32.33834467,157.0,156.95,4.67714467]
[1750048968754,4.67714467,156.99,156.94,4.67714467]
[1750048968958,30.67714467,156.99,156.94,4.67714467]
[1750048970680,4.67714467,156.98,156.92,26.14]
[1750048970860,4.67714467,156.98,156.93,4.67714467]
[1750048972669,26.0,156.99,156.94,4.67714467]
[1750048972866,26.0,156.99,156.95,4.67714467]
[1750048973069,11.97834467,157.0,156.95,4.67714467]
[1750048973456,5.64,157.0,156.96,4.67714467]
[1750048974149,5.64,157.0,156.95,4.67714467]
[1750048975747,5.64,157.0,156.96,4.67714467]
[1750048977382,10.31714467,157.0,156.95,4.67714467]
[1750048980451,5.64,157.0,156.96,4.67714467]
[1750048980960,11.42220771,157.02,156.98,4.67714467]
[1750048981166,11.42220771,157.02,156.95,6.51359302]
[1750048981167,11.42220771,157.02,156.99,4.67714467]
[1750048981871,11.42220771,157.02,156.98,4.67714467]
[1750048982073,16.09935238,157.02,156.95,6.51359302]
[1750048982262,16.09935238,157.02,156.96,4.67714467]
[1750048982263,4.67714467,157.01,156.96,4.67714467]
[1750048982463,11.42220771,157.02,156.98,4.67714467]
[1750048982681,11.42220771,157.02,156.99,4.67714467]
[1750048982894,11.42220771,157.02,157.0,4.67714467]
[1750048983070,11.42220771,157.02,157.01,4.67714467]
[1750048984081,11.42220771,157.02,157.01,23.4689551]
[1750048984287,11.42220771,157.02,157.01,29.83797618]
[1750048985066,11.42220771,157.02,157.01,55.97797618]
[1750048985493,6.32334467,157.08,157.01,55.97797618]
[1750048985678,6.32334467,157.08,157.03,4.67714467]
[1750048989599,4.67714467,157.07,157.03,4.67714467]
[1750048989986,6.32334467,157.08,157.03,4.67714467]
[1750048990189,1.6462,157.08,157.04,4.67714467]
[1750048991000,31.64,157.09,157.05,4.67714467]
[1750048991172,36.31714467,157.09,157.04,4.67714467]
[1750048991964,36.31714467,157.09,157.02,18.79181043]
[1750048992168,36.31714467,157.09,157.04,4.67714467]
[1750048993370,4.67714467,157.08,157.03,4.67714467]
[1750048994714,4.67714467,157.06,157.01,4.67714467]
[1750048995296,4.67714467,157.04,156.99,23.4689551]
[1750048995482,4.67714467,157.05,157.0,4.67714467]
[1750048999296,26.0,157.06,157.02,4.67714467]
[1750048999498,36.31714467,157.09,157.04,4.67714467]
[1750048999894,4.67714467,157.08,157.01,18.79181043]
[1750049000095,4.67714467,157.08,157.03,4.67714467]
[1750049001700,4.67714467,157.07,157.03,4.67714467]
[1750049003216,4.67714467,157.07,157.02,4.67714467]
[1750049004289,31.64,157.09,157.02,4.67714467]
[1750049004489,4.67714467,157.07,157.02,4.67714467]
[1750049006416,4.67714467,157.08,157.02,4.67714467]
[1750049006717,4.67714467,157.08,157.03,4.67714467]
[1750049008205,4.67714467,157.07,157.02,4.67714467]
[1750049009507,31.64,157.09,157.02,4.67714467]
[1750049009712,4.67714467,157.07,157.02,4.67714467]
[1750049011307,4.67714467,157.08,157.02,4.67714467]
[1750049014514,4.67714467,157.08,157.03,4.67714467]
[1750049016002,4.67714467,157.08,157.02,4.67714467]
[1750049018206,4.67714467,157.08,157.03,4.67714467]
[1750049018518,36.31714467,157.09,157.03,4.67714467]
[1750049018716,6.28250846,157.12,157.06,4.67714467]
[1750049018911,7.1563,157.12,157.08,4.67714467]
[1750049019417,11.90250846,157.12,157.08,4.67714467]
[1750049019925,11.90250846,157.12,157.03,44.91181043]
[1750049019926,10.36620846,157.12,157.03,44.91181043]
[1750049020125,5.62,157.12,157.08,4.67714467]
[1750049020727,5.62,157.12,157.04,6.36780438]
[1750049020912,4.67714467,157.08,157.03,4.67714467]
[1750049022231,4.67714467,157.08,157.02,18.79181043]
[1750049022536,30.67714467,157.09,157.04,4.67714467]
[1750049022737,30.67714467,157.09,157.03,4.67714467]
[1750049022941,4.67714467,157.07,157.0,6.36931333]
[1750049023232,4.67714467,157.07,157.02,4.67714467]
[1750049024234,26.0,157.09,157.03,4.67714467]
[1750049024408,26.0,157.09,157.01,25.16082617]
[1750049024409,30.67714467,157.09,157.04,4.67714467]
[1750049024607,35.42335313,157.09,157.04,4.67714467]
[1750049024831,30.74620846,157.09,157.05,4.67714467]
[1750049025133,1.6239,157.1,157.05,4.67714467]
[1750049025313,30.67714467,157.11,157.06,4.67714467]
[1750049025702,35.44511782,157.11,157.06,4.67714467]
[1750049025907,30.67714467,157.11,157.06,4.67714467]
[1750049026128,26.0,157.11,157.05,4.67714467]
[1750049026324,30.67714467,157.11,157.05,4.67714467]
[1750049026725,35.44511782,157.11,157.05,4.67714467]
[1750049027321,9.44511782,157.11,157.06,4.67714467]
[1750049027518,10.29714467,157.12,157.07,4.67714467]
[1750049027719,15.06511782,157.12,157.07,4.67714467]
[1750049027933,5.62,157.12,157.08,4.67714467]
[1750049028313,10.29714467,157.12,157.07,4.67714467]
[1750049030567,5.62,157.12,157.08,4.67714467]
[1750049031037,5.62,157.12,157.11,4.67714467]
[1750049032532,12.04193106,157.16,157.11,11.04211189]
[1750049032732,12.04193106,157.16,157.13,4.67714467]
[1750049032936,12.04193106,157.16,157.14,4.67714467]
[1750049034244,12.04193106,157.16,157.15,4.67714467]
[1750049034449,5.62,157.19,157.15,4.67714467]
[1750049034966,10.98340899,157.21,157.16,4.67714467]
[1750049035260,6.22774467,157.21,157.16,4.67714467]
[1750049036264,6.22774467,157.21,157.14,18.79181043]
[1750049036574,6.22774467,157.21,157.16,4.67714467]
[1750049036860,6.22774467,157.21,157.14,0.14216157]
[1750049036861,4.67714467,157.19,157.14,23.4689551]
[1750049037368,4.67714467,157.2,157.14,18.79181043]
[1750049037669,1.5506,157.21,157.17,4.67714467]
[1750049037969,36.29714467,157.22,157.17,4.67714467]
[1750049037970,31.62,157.22,157.17,4.67714467]
[1750049038185,4.67714467,157.24,157.19,4.67714467]
[1750049038344,6.33474467,157.25,157.2,4.67714467]
[1750049038671,32.33474467,157.25,157.19,4.67714467]
[1750049038873,4.67714467,157.24,157.19,4.67714467]
[1750049039661,27.6576,157.25,157.19,4.67714467]
[1750049039861,4.67714467,157.24,157.19,4.67714467]
[1750049040068,27.6576,157.25,157.19,4.67714467]
[1750049040379,26.0,157.25,157.21,4.67714467]
[1750049041371,26.0,157.25,157.21,4.17714467]
[1750049042266,26.0,157.25,157.21,4.67714467]
[1750049042968,4.67714467,157.22,157.15,4.67714467]
[1750049043182,4.67714467,157.19,157.13,18.64964886]
[1750049043345,4.67714467,157.17,157.12,4.67714467]
[1750049043541,4.67714467,157.16,157.1,6.36523613]
[1750049043748,4.67714467,157.16,157.11,4.67714467]
[1750049044174,4.67714467,157.15,157.1,23.32679353]
[1750049044761,4.67714467,157.16,157.11,4.67714467]
[1750049045278,4.67714467,157.15,157.1,23.32679353]
[1750049046674,4.67714467,157.16,157.1,23.32679353]
[1750049048285,5.62,157.17,157.12,4.67714467]
[1750049048468,10.29714467,157.17,157.11,23.32679353]
[1750049049187,10.29714467,157.17,157.12,4.67714467]
[1750049049580,10.29714467,157.17,157.11,18.64964886]
[1750049049771,5.62,157.17,157.11,4.67714467]
[1750049050081,4.67714467,157.16,157.11,4.67714467]
[1750049050880,4.67714467,157.16,157.1,18.79181043]
[1750049051060,4.67714467,157.14,157.09,23.32679353]
[1750049051380,4.67714467,157.16,157.11,4.67714467]
[1750049052389,31.62,157.17,157.11,4.67714467]
[1750049052573,4.67714467,157.16,157.11,4.67714467]
[1750049054256,36.29714467,157.17,157.11,4.67714467]
[1750049055701,36.29714467,157.17,157.12,4.67714467]
[1750049056203,4.67714467,157.16,157.11,4.67714467]
[1750049057683,36.29714467,157.17,157.11,11.04209776]
[1750049057890,36.29714467,157.17,157.12,4.67714467]
[1750049058094,5.62,157.17,157.12,4.67714467]
[1750049058381,5.62,157.17,157.14,4.67714467]
[1750049058781,5.62,157.17,157.13,4.67714467]
[1750049059911,10.29714467,157.17,157.11,11.18413094]
[1750049060204,10.29714467,157.17,157.11,11.04196937]
[1750049060590,10.29714467,157.17,157.12,4.67714467]
[1750049060788,10.29714467,157.17,157.11,6.3648247]
[1750049061104,10.29714467,157.17,157.12,4.67714467]
[1750049061478,5.62,157.17,157.13,4.67714467]
[1750049062313,5.62,157.17,157.12,4.67714467]
[1750049064282,10.29714467,157.17,157.12,4.67714467]
[1750049065518,5.62,157.17,157.12,4.67714467]
[1750049065810,10.29714467,157.17,157.12,4.67714467]
[1750049069090,5.62,157.17,157.13,4.67714467]
[1750049069704,5.62,157.17,157.11,25.01461608]
[1750049069912,5.62,157.17,157.13,4.67714467]
[1750049070493,10.29714467,157.17,157.12,4.67714467]
[1750049070820,5.62,157.17,157.12,4.67714467]
[1750049071216,10.29714467,157.17,157.12,4.67714467]
[1750049072291,5.62,157.17,157.12,11.0416221]
[1750049072510,10.29714467,157.17,157.12,11.0416221]
[1750049073702,5.62,157.17,157.12,11.0416221]
[1750049075628,4.67714467,157.17,157.12,11.0416221]
[1750049075813,4.67714467,157.17,157.12,4.67714467]
[1750049076196,4.67714467,157.15,157.09,89.2]
[1750049076408,4.67714467,157.16,157.1,30.75714467]
[1750049076901,4.67714467,157.16,157.1,37.12244622]
[1750049077825,26.0,157.17,157.12,4.67714467]
[1750049078011,4.67714467,157.18,157.13,4.67714467]
[1750049078327,4.67714467,157.18,157.12,4.67714467]
[1750049079018,4.67714467,157.17,157.11,29.69164985]
[1750049079318,4.67714467,157.16,157.11,18.64964886]
[1750049079901,26.0,157.17,157.11,29.69164084]
[1750049080099,30.67714467,157.17,157.11,29.69164084]
[1750049080507,30.67714467,157.17,157.12,4.67714467]
[1750049081702,26.0,157.17,157.12,11.04161497]
[1750049082113,26.0,157.17,157.12,6.3644703]
[1750049082315,30.67714467,157.17,157.11,29.6916344]
[1750049085932,4.67714467,157.16,157.11,29.6916344]
[1750049086427,26.0,157.17,157.11,29.6916344]
[1750049086636,30.67714467,157.17,157.11,29.6916344]
[1750049087517,35.40904344,157.17,157.11,29.6916344]
[1750049087731,4.67714467,157.16,157.11,23.32679353]
[1750049087936,4.67714467,157.16,157.11,29.69175991]
[1750049088241,35.40904344,157.16,157.11,18.64964886]
[1750049088409,30.67714467,157.16,157.11,18.64964886]
[1750049088839,35.40904344,157.16,157.11,18.64964886]
[1750049089017,30.67714467,157.16,157.11,18.64964886]
[1750049089920,35.40904344,157.16,157.11,18.64964886]
[1750049090119,30.67714467,157.16,157.11,18.64964886]
[1750049090545,35.40904344,157.16,157.11,18.64964886]
[1750049090837,30.67714467,157.16,157.11,18.64964886]
[1750049091421,30.67714467,157.16,157.11,23.32679353]
[1750049091814,30.67714467,157.16,157.11,18.64964886]
[1750049092014,30.67714467,157.16,157.11,23.32679353]
[1750049092337,26.0,157.16,157.11,23.32679353]
[1750049093238,30.73189877,157.16,157.11,23.32679353]
[1750049094341,26.0,157.16,157.11,23.32679353]
[1750049095336,30.73189877,157.16,157.11,23.32679353]